[Event "2026 European Womens Championship"]
[Site "Batumi, GE"]
[Date "2026.06.05"]
[Round "11"]
[White "Milliet, Sophie"]
[Black "Skarbarchuk, Tetyana"]
[Result "1/2-1/2"]
[Board "22"]
[TimeControl "5400+30"]
[WhiteFideId "623725"]
[BlackFideId "14184494"]
[WhiteElo "2361"]
[BlackElo "2236"]
[WhiteTitle "IM"]
[WhiteClock "0:07:53"]
[BlackClock "0:01:29"]
[Variant "Standard"]

1. Nf3 {[%clk 1:30:55]}  d5 {[%clk 1:30:23]} 2. g3 {[%clk 1:31:20]}  c5 {[%clk 1:30:33]} 3. Bg2 {[%clk 1:31:37]}  Nf6 {[%clk 1:30:54]}
4. O-O {[%clk 1:31:59]}  e6 {[%clk 1:29:24]} 5. c4 {[%clk 1:32:08]}  d4 {[%clk 1:29:35]} 6. d3 {[%clk 1:31:54]}  h6 {[%clk 1:29:51]}
7. e3 {[%clk 1:30:02]}  Nc6 {[%clk 1:29:59]} 8. Na3 {[%clk 1:30:22]}  Be7 {[%clk 1:25:19]} 9. exd4 {[%clk 1:30:07]}  cxd4 {[%clk 1:25:43]}
10. Nc2 {[%clk 1:27:50]}  O-O {[%clk 1:22:44]} 11. Re1 {[%clk 1:28:03]}  Re8 {[%clk 1:21:35]} 12. a3 {[%clk 1:17:25]}  a5 {[%clk 1:21:52]}
13. b3 {[%clk 1:17:04]}  Bf8 {[%clk 1:11:18]} 14. Bf4 {[%clk 1:16:29]}  g5 {[%clk 1:05:51]} 15. Be5 {[%clk 1:06:41]}  Bg7 {[%clk 0:56:08]}
16. b4 {[%clk 1:04:06]}  axb4 {[%clk 0:45:11]} 17. axb4 {[%clk 1:04:29]}  Rxa1 {[%clk 0:45:30]} 18. Qxa1 {[%clk 1:04:50]}  g4 {[%clk 0:45:42]}
19. Bxf6 {[%clk 1:04:39]}  Bxf6 {[%clk 0:32:45]} 20. Nd2 {[%clk 1:05:04]}  Ne5 {[%clk 0:33:04]} 21. Ne4 {[%clk 0:44:23]}  Bg7 {[%clk 0:29:43]}
22. Qd1 {[%clk 0:44:24]}  b6 {[%clk 0:22:01]} 23. c5 {[%clk 0:42:33]}  bxc5 {[%clk 0:22:22]} 24. Nxc5 {[%clk 0:42:47]}  h5 {[%clk 0:20:38]}
25. Qe2 {[%clk 0:35:58]}  h4 {[%clk 0:16:03]} 26. Ra1 {[%clk 0:35:18]}  h3 {[%clk 0:14:59]} 27. Bh1 {[%clk 0:35:38]}  Qg5 {[%clk 0:14:24]}
28. Ne1 {[%clk 0:34:13]}  Qg6 {[%clk 0:11:12]} 29. Qc2 {[%clk 0:23:20]}  Nd7 {[%clk 0:09:10]} 30. Qa4 {[%clk 0:21:29]}  Rd8 {[%clk 0:09:29]}
31. Qa5 {[%clk 0:20:10]}  Rf8 {[%clk 0:08:54]} 32. Qa7 {[%clk 0:11:30]}  Nxc5 {[%clk 0:08:26]} 33. bxc5 {[%clk 0:11:46]}  Be5 {[%clk 0:08:08]}
34. c6 {[%clk 0:11:30]}  f5 {[%clk 0:08:18]} 35. Qc5 {[%clk 0:10:20]}  Qg7 {[%clk 0:06:52]} 36. Ra7 {[%clk 0:08:17]}  Rf7 {[%clk 0:06:12]}
37. Rxf7 {[%clk 0:06:36]}  Kxf7 {[%clk 0:06:35]} 38. f4 {[%clk 0:06:43]}  Bc7 {[%clk 0:04:52]} 39. Nc2 {[%clk 0:05:09]}  Qh8 {[%clk 0:04:24]}
40. Kf1 {[%clk 0:00:54]}  Qd8 {[%clk 0:02:46]} 41. Qxd4 {[%clk 0:13:28]}  Qxd4 {[%clk 0:32:19]} 42. Nxd4 {[%clk 0:13:55]}  Ba6 {[%clk 0:32:36]}
43. Ke2 {[%clk 0:14:07]}  Ke7 {[%clk 0:19:58]} 44. Nc2 {[%clk 0:14:19]}  Kd6 {[%clk 0:18:30]} 45. Na3 {[%clk 0:14:10]}  Kc5 {[%clk 0:13:20]}
46. Ke3 {[%clk 0:11:57]}  Kb4 {[%clk 0:13:12]} 47. Nc4 {[%clk 0:11:41]}  Bxc4 {[%clk 0:13:06]} 48. dxc4 {[%clk 0:12:08]}  Kxc4 {[%clk 0:13:32]}
49. Ke2 {[%clk 0:10:32]}  Kc5 {[%clk 0:10:59]} 50. Kd3 {[%clk 0:10:01]}  Kd6 {[%clk 0:10:20]} 51. Ke2 {[%clk 0:10:25]}  Bb6 {[%clk 0:10:12]}
52. c7 {[%clk 0:06:23]}  Kxc7 {[%clk 0:10:34]} 53. Kf1 {[%clk 0:06:51]}  Be3 {[%clk 0:03:49]} 54. Ba8 {[%clk 0:07:02]}  Kd6 {[%clk 0:03:33]}
55. Bb7 {[%clk 0:07:28]}  Ke7 {[%clk 0:03:41]} 56. Bc8 {[%clk 0:07:27]}  Kf6 {[%clk 0:03:24]} 57. Bd7 {[%clk 0:07:53]}  Bd4 {[%clk 0:01:29]} 1/2-1/2

[Event "2026 European Womens Championship"]
[Site "Batumi, GE"]
[Date "2026.06.05"]
[Round "11"]
[White "Zherebtsova, Alexandra"]
[Black "Gaponenko, Inna"]
[Result "0-1"]
[Board "23"]
[TimeControl "5400+30"]
[WhiteFideId "24129518"]
[BlackFideId "14101181"]
[WhiteElo "2242"]
[BlackElo "2331"]
[WhiteTitle "FM"]
[BlackTitle "IM"]
[WhiteClock "0:30:25"]
[BlackClock "0:10:19"]
[Variant "Standard"]

1. c4 {[%clk 1:30:55]}  c5 {[%clk 1:30:18]} 2. Nf3 {[%clk 1:31:02]}  g6 {[%clk 1:29:42]} 3. g3 {[%clk 1:31:20]}  Bg7 {[%clk 1:29:27]}
4. Bg2 {[%clk 1:31:45]}  Nc6 {[%clk 1:29:53]} 5. Nc3 {[%clk 1:31:47]}  d6 {[%clk 1:28:04]} 6. d3 {[%clk 1:21:31]}  e5 {[%clk 1:28:05]}
7. a3 {[%clk 1:17:27]}  a5 {[%clk 1:27:03]} 8. Rb1 {[%clk 1:14:21]}  Nge7 {[%clk 1:26:00]} 9. Bd2 {[%clk 1:10:33]}  h6 {[%clk 1:19:35]}
10. Qc1 {[%clk 0:57:53]}  Be6 {[%clk 1:19:18]} 11. Nb5 {[%clk 0:48:19]}  Rc8 {[%clk 1:04:28]} 12. O-O {[%clk 0:43:15]}  b6 {[%clk 1:02:31]}
13. Ne1 {[%clk 0:34:58]}  d5 {[%clk 1:00:37]} 14. b3 {[%clk 0:31:29]}  Qd7 {[%clk 0:54:15]} 15. Nc2 {[%clk 0:29:29]}  h5 {[%clk 0:52:52]}
16. h4 {[%clk 0:26:08]}  d4 {[%clk 0:36:07]} 17. Qe1 {[%clk 0:16:49]}  O-O {[%clk 0:35:47]} 18. b4 {[%clk 0:16:36]}  axb4 {[%clk 0:19:52]}
19. axb4 {[%clk 0:17:00]}  Bh3 {[%clk 0:20:16]} 20. bxc5 {[%clk 0:15:51]}  Bxg2 {[%clk 0:20:41]} 21. Kxg2 {[%clk 0:16:10]}  bxc5 {[%clk 0:21:07]}
22. Na1 {[%clk 0:14:59]}  Nf5 {[%clk 0:20:17]} 23. Rh1 {[%clk 0:11:00]}  Nd8 {[%clk 0:20:34]} 24. Nb3 {[%clk 0:10:17]}  Ne6 {[%clk 0:21:00]}
25. Qc1 {[%clk 0:08:30]}  Qb7+ {[%clk 0:15:07]} 26. Kh2 {[%clk 0:08:26]}  e4 {[%clk 0:15:00]} 27. Na5 {[%clk 0:01:22]}  Qa8 {[%clk 0:15:25]}
28. dxe4 {[%clk 0:01:21]}  Qxe4 {[%clk 0:15:49]} 29. Qf1 {[%clk 0:01:25]}  Be5 {[%clk 0:10:40]} 30. f4 {[%clk 0:01:30]}  Bc7 {[%clk 0:10:34]}
31. Nxc7 {[%clk 0:01:21]}  Rxc7 {[%clk 0:11:02]} 32. Qg2 {[%clk 0:01:11]}  Qc2 {[%clk 0:09:53]} 33. Rhd1 {[%clk 0:01:17]}  Nh6 {[%clk 0:08:39]}
34. Rbc1 {[%clk 0:01:28]}  Ng4+ {[%clk 0:08:59]} 35. Kg1 {[%clk 0:01:43]}  Qa4 {[%clk 0:08:52]} 36. f5 {[%clk 0:01:09]}  Ng7 {[%clk 0:09:10]}
37. Bf4 {[%clk 0:01:03]}  Qxa5 {[%clk 0:07:38]} 38. Ra1 {[%clk 0:01:27]}  Qb6 {[%clk 0:07:57]} 39. Rdb1 {[%clk 0:01:39]}  Qc6 {[%clk 0:08:17]}
40. Bxc7 {[%clk 0:01:45]}  Qxc7 {[%clk 0:08:45]} 41. fxg6 {[%clk 0:01:20]}  fxg6 {[%clk 0:03:13]} 42. Ra8 {[%clk 0:00:53]}  Rxa8 {[%clk 0:01:51]}
43. Qxa8+ {[%clk 0:01:20]}  Kh7 {[%clk 0:02:14]} 44. Qf3 {[%clk 0:01:46]}  Qe5 {[%clk 0:29:52]} 45. Rb7 {[%clk 0:27:49]}  Ne3 {[%clk 0:21:45]}
46. Qf4 {[%clk 0:27:39]}  Qxf4 {[%clk 0:19:51]} 47. gxf4 {[%clk 0:28:05]}  Nxc4 {[%clk 0:19:35]} 48. Rc7 {[%clk 0:28:30]}  Ne3 {[%clk 0:19:08]}
49. Rxc5 {[%clk 0:28:55]}  Nef5 {[%clk 0:09:05]} 50. Rd5 {[%clk 0:28:27]}  Ne6 {[%clk 0:09:26]} 51. Rd7+ {[%clk 0:28:48]}  Kh6 {[%clk 0:09:12]}
52. Kf2 {[%clk 0:29:04]}  Nxf4 {[%clk 0:09:38]} 53. Rd8 {[%clk 0:28:41]}  Kg7 {[%clk 0:09:31]} 54. Kf1 {[%clk 0:27:58]}  Ne6 {[%clk 0:09:43]}
55. Rd7+ {[%clk 0:28:08]}  Kf6 {[%clk 0:10:07]} 56. Kf2 {[%clk 0:28:35]}  Nxh4 {[%clk 0:09:59]} 57. e3 {[%clk 0:28:58]}  dxe3+ {[%clk 0:10:13]}
58. Kxe3 {[%clk 0:29:23]}  Nf5+ {[%clk 0:10:36]} 59. Kf2 {[%clk 0:29:42]}  g5 {[%clk 0:10:57]} 60. Ra7 {[%clk 0:30:08]}  g4 {[%clk 0:11:12]}
61. Kg2 {[%clk 0:30:08]}  Kg5 {[%clk 0:10:57]} 62. Ra5 {[%clk 0:30:31]}  Nf4+ {[%clk 0:11:17]} 63. Kh1 {[%clk 0:30:43]}  g3 {[%clk 0:11:27]}
64. Rb5 {[%clk 0:30:51]}  Kg4 {[%clk 0:11:42]} 65. Rb4 {[%clk 0:31:18]}  Kf3 {[%clk 0:10:56]} 66. Rb1 {[%clk 0:30:16]}  Ne3 {[%clk 0:11:01]}
67. Ra1 {[%clk 0:30:24]}  g2+ {[%clk 0:09:53]} 68. Kh2 {[%clk 0:30:36]}  Nf1+ {[%clk 0:09:54]} 69. Rxf1+ {[%clk 0:30:25]}  gxf1=B {[%clk 0:10:19]} 0-1

[Event "2026 European Womens Championship"]
[Site "Batumi, GE"]
[Date "2026.06.05"]
[Round "11"]
[White "Khukhashvili, Sopiko"]
[Black "Rapport, Jovana"]
[Result "1-0"]
[Board "24"]
[TimeControl "5400+30"]
[WhiteFideId "13602055"]
[BlackFideId "937266"]
[WhiteElo "2329"]
[BlackElo "2235"]
[WhiteTitle "IM"]
[BlackTitle "WGM"]
[WhiteClock "0:11:01"]
[BlackClock "0:04:17"]
[Variant "Standard"]

1. e4 {[%clk 1:30:58]}  Nf6 {[%clk 1:30:54]} 2. e5 {[%clk 1:31:19]}  Nd5 {[%clk 1:31:18]} 3. d4 {[%clk 1:31:45]}  d6 {[%clk 1:31:42]}
4. Nf3 {[%clk 1:31:07]}  dxe5 {[%clk 1:31:57]} 5. Nxe5 {[%clk 1:31:36]}  c6 {[%clk 1:32:04]} 6. Bd3 {[%clk 1:31:56]}  g6 {[%clk 1:31:40]}
7. Qf3 {[%clk 1:30:11]}  Be6 {[%clk 1:26:29]} 8. h4 {[%clk 1:23:34]}  Nf6 {[%clk 1:21:08]} 9. c3 {[%clk 1:21:54]}  Nbd7 {[%clk 1:19:42]}
10. Qe2 {[%clk 1:21:14]}  Bg7 {[%clk 1:18:43]} 11. Bf4 {[%clk 1:19:14]}  Nd5 {[%clk 1:12:29]} 12. Bg3 {[%clk 1:18:48]}  Nxe5 {[%clk 1:12:48]}
13. Bxe5 {[%clk 1:15:43]}  Bxe5 {[%clk 1:13:01]} 14. Qxe5 {[%clk 1:16:07]}  Nf6 {[%clk 1:13:26]} 15. h5 {[%clk 1:13:26]}  Rg8 {[%clk 1:09:35]}
16. h6 {[%clk 1:05:21]}  Qd5 {[%clk 1:09:09]} 17. Qxd5 {[%clk 1:02:28]}  Nxd5 {[%clk 1:02:54]} 18. Nd2 {[%clk 0:59:24]}  Nf4 {[%clk 0:57:49]}
19. Bf1 {[%clk 0:58:18]}  Bf5 {[%clk 0:58:08]} 20. g3 {[%clk 0:57:38]}  Nd5 {[%clk 0:49:58]} 21. O-O-O {[%clk 0:57:37]}  O-O-O {[%clk 0:50:14]}
22. Re1 {[%clk 0:56:57]}  g5 {[%clk 0:47:21]} 23. Bg2 {[%clk 0:54:42]}  e6 {[%clk 0:47:22]} 24. Nc4 {[%clk 0:54:21]}  f6 {[%clk 0:43:00]}
25. a3 {[%clk 0:48:28]}  Rge8 {[%clk 0:38:36]} 26. Bf3 {[%clk 0:44:14]}  Re7 {[%clk 0:36:18]} 27. Be4 {[%clk 0:37:28]}  Bxe4 {[%clk 0:36:18]}
28. Rxe4 {[%clk 0:37:56]}  Rg8 {[%clk 0:31:11]} 29. Nd2 {[%clk 0:34:11]}  Nc7 {[%clk 0:30:48]} 30. Re2 {[%clk 0:31:35]}  b6 {[%clk 0:29:30]}
31. Kc2 {[%clk 0:31:07]}  Rg6 {[%clk 0:29:52]} 32. a4 {[%clk 0:31:11]}  Rd7 {[%clk 0:30:02]} 33. a5 {[%clk 0:30:14]}  Kb7 {[%clk 0:30:27]}
34. axb6 {[%clk 0:28:43]}  axb6 {[%clk 0:30:53]} 35. b4 {[%clk 0:28:59]}  Rd8 {[%clk 0:28:19]} 36. Nc4 {[%clk 0:26:40]}  Rd7 {[%clk 0:27:13]}
37. Kb3 {[%clk 0:25:25]}  Rd8 {[%clk 0:26:42]} 38. Ra2 {[%clk 0:24:16]}  Nb5 {[%clk 0:16:33]} 39. Rha1 {[%clk 0:20:16]}  Rb8 {[%clk 0:14:38]}
40. Re2 {[%clk 0:18:57]}  f5 {[%clk 0:11:11]} 41. Rae1 {[%clk 0:18:49]}  Re8 {[%clk 0:06:57]} 42. Re5 {[%clk 0:18:37]}  Kc7 {[%clk 0:07:25]}
43. Rxf5 {[%clk 0:17:23]}  Nd6 {[%clk 0:04:03]} 44. Nxd6 {[%clk 0:15:20]}  Kxd6 {[%clk 0:04:09]} 45. Rf7 {[%clk 0:15:06]}  Re7 {[%clk 0:01:39]}
46. Rxe7 {[%clk 0:15:29]}  Kxe7 {[%clk 0:02:08]} 47. Ra1 {[%clk 0:14:29]}  Kd6 {[%clk 0:29:05]} 48. c4 {[%clk 0:30:03]}  Rxh6 {[%clk 0:23:28]}
49. c5+ {[%clk 0:27:26]}  bxc5 {[%clk 0:23:31]} 50. dxc5+ {[%clk 0:27:51]}  Ke5 {[%clk 0:20:58]} 51. Re1+ {[%clk 0:25:58]}  Kf5 {[%clk 0:21:04]}
52. b5 {[%clk 0:21:13]}  e5 {[%clk 0:21:26]} 53. Kc4 {[%clk 0:20:40]}  cxb5+ {[%clk 0:14:45]} 54. Kd5 {[%clk 0:20:14]}  Ra6 {[%clk 0:10:45]}
55. Rxe5 {[%clk 0:17:17]}  Kg4 {[%clk 0:08:23]} 56. Re2 {[%clk 0:13:04]}  Kf3 {[%clk 0:06:29]} 57. Rc2 {[%clk 0:12:15]}  Ra8 {[%clk 0:04:21]}
58. c6 {[%clk 0:12:09]}  b4 {[%clk 0:04:20]} 59. c7 {[%clk 0:10:54]}  Rc8 {[%clk 0:04:49]} 60. Kc6 {[%clk 0:10:36]}  h5 {[%clk 0:05:11]}
61. Kb7 {[%clk 0:10:40]}  Rh8 {[%clk 0:04:54]} 62. Rb2 {[%clk 0:09:59]}  h4 {[%clk 0:03:33]} 63. gxh4 {[%clk 0:10:23]}  gxh4 {[%clk 0:04:01]}
64. c8=Q {[%clk 0:10:11]}  Rxc8 {[%clk 0:04:30]} 65. Kxc8 {[%clk 0:10:35]}  h3 {[%clk 0:04:17]} 66. Rb3+ {[%clk 0:11:01]} 1-0

[Event "2026 European Womens Championship"]
[Site "Batumi, GE"]
[Date "2026.06.05"]
[Round "11"]
[White "Piddubna, Bozhena"]
[Black "Mammadova, Gulnar"]
[Result "1/2-1/2"]
[Board "25"]
[TimeControl "5400+30"]
[WhiteFideId "34109293"]
[BlackFideId "13403508"]
[WhiteElo "2235"]
[BlackElo "2325"]
[WhiteTitle "WIM"]
[BlackTitle "IM"]
[WhiteClock "0:00:34"]
[BlackClock "0:19:26"]
[Variant "Standard"]

1. d4 {[%clk 1:30:53]}  Nf6 {[%clk 1:30:53]} 2. c4 {[%clk 1:31:15]}  e6 {[%clk 1:31:17]} 3. Nf3 {[%clk 1:31:37]}  d5 {[%clk 1:31:42]}
4. g3 {[%clk 1:31:44]}  Bb4+ {[%clk 1:31:54]} 5. Bd2 {[%clk 1:32:05]}  Be7 {[%clk 1:32:12]} 6. Bg2 {[%clk 1:30:59]}  c6 {[%clk 1:32:32]}
7. Qc2 {[%clk 1:30:12]}  Nbd7 {[%clk 1:32:35]} 8. O-O {[%clk 1:29:26]}  O-O {[%clk 1:30:25]} 9. Rc1 {[%clk 1:27:02]}  a5 {[%clk 1:30:37]}
10. a3 {[%clk 1:25:50]}  b6 {[%clk 1:28:03]} 11. cxd5 {[%clk 1:24:21]}  cxd5 {[%clk 1:28:14]} 12. Bf4 {[%clk 1:24:45]}  Ba6 {[%clk 1:26:11]}
13. Nc3 {[%clk 1:23:18]}  Rc8 {[%clk 1:25:06]} 14. Qa4 {[%clk 1:18:28]}  Rc4 {[%clk 1:19:20]} 15. Qd1 {[%clk 1:15:46]}  Rc8 {[%clk 1:14:41]}
16. Bf1 {[%clk 1:06:52]}  Nh5 {[%clk 1:11:36]} 17. Bd2 {[%clk 1:05:18]}  Nhf6 {[%clk 1:08:55]} 18. Bg2 {[%clk 0:59:36]}  b5 {[%clk 1:05:12]}
19. Bf1 {[%clk 0:55:25]}  Nb6 {[%clk 1:01:36]} 20. b3 {[%clk 0:48:58]}  b4 {[%clk 0:54:37]} 21. axb4 {[%clk 0:48:21]}  Bxb4 {[%clk 0:55:00]}
22. e3 {[%clk 0:43:17]}  Bxf1 {[%clk 0:52:40]} 23. Qxf1 {[%clk 0:43:37]}  Qe7 {[%clk 0:49:03]} 24. Qa6 {[%clk 0:34:08]}  Nbd7 {[%clk 0:42:05]}
25. Na2 {[%clk 0:24:24]}  Ra8 {[%clk 0:36:44]} 26. Qc6 {[%clk 0:19:25]}  Ba3 {[%clk 0:32:45]} 27. Rcb1 {[%clk 0:14:47]}  Ne4 {[%clk 0:30:05]}
28. Be1 {[%clk 0:14:12]}  Rfc8 {[%clk 0:27:09]} 29. Qa4 {[%clk 0:13:58]}  Rcb8 {[%clk 0:22:43]} 30. Nc3 {[%clk 0:08:02]}  Nxc3 {[%clk 0:19:21]}
31. Bxc3 {[%clk 0:08:28]}  Bb4 {[%clk 0:19:20]} 32. Rc1 {[%clk 0:04:36]}  Bxc3 {[%clk 0:17:36]} 33. Rxc3 {[%clk 0:05:02]}  Nb6 {[%clk 0:17:00]}
34. Qa3 {[%clk 0:03:50]}  Qxa3 {[%clk 0:16:05]} 35. Rxa3 {[%clk 0:04:15]}  a4 {[%clk 0:13:59]} 36. bxa4 {[%clk 0:01:06]}  Rxa4 {[%clk 0:14:02]}
37. Rab3 {[%clk 0:01:15]}  Raa8 {[%clk 0:13:56]} 38. Ne5 {[%clk 0:01:05]}  Nc4 {[%clk 0:10:46]} 39. Rxb8+ {[%clk 0:01:31]}  Rxb8 {[%clk 0:11:15]}
40. Nxc4 {[%clk 0:01:50]}  Rc8 {[%clk 0:11:34]} 41. Kf1 {[%clk 0:29:02]}  dxc4 {[%clk 0:41:57]} 42. Ke2 {[%clk 0:28:04]}  Kf8 {[%clk 0:38:21]}
43. Kd2 {[%clk 0:26:56]}  Ke7 {[%clk 0:38:01]} 44. Ra3 {[%clk 0:26:53]}  g5 {[%clk 0:34:23]} 45. Ra5 {[%clk 0:21:56]}  h6 {[%clk 0:34:00]}
46. Rc5 {[%clk 0:18:22]}  Ra8 {[%clk 0:34:23]} 47. Rxc4 {[%clk 0:18:47]}  Ra1 {[%clk 0:34:11]} 48. Rc1 {[%clk 0:18:37]}  Ra2+ {[%clk 0:34:36]}
49. Rc2 {[%clk 0:13:12]}  Ra1 {[%clk 0:34:54]} 50. Kd3 {[%clk 0:05:27]}  g4 {[%clk 0:32:03]} 51. Ke4 {[%clk 0:05:20]}  h5 {[%clk 0:25:45]}
52. Rc5 {[%clk 0:02:28]}  Ra2 {[%clk 0:23:52]} 53. Rxh5 {[%clk 0:02:53]}  Rxf2 {[%clk 0:24:20]} 54. Rh6 {[%clk 0:02:09]}  Kd6 {[%clk 0:22:22]}
55. Kd3 {[%clk 0:01:27]}  f5 {[%clk 0:22:17]} 56. Rh4 {[%clk 0:01:06]}  Kd5 {[%clk 0:21:20]} 57. h3 {[%clk 0:00:58]}  gxh3 {[%clk 0:18:56]}
58. Rxh3 {[%clk 0:01:20]}  Rg2 {[%clk 0:19:23]} 59. e4+ {[%clk 0:00:49]}  fxe4+ {[%clk 0:19:39]} 60. Ke3 {[%clk 0:01:16]}  e5 {[%clk 0:19:27]}
61. dxe5 {[%clk 0:01:32]}  Kxe5 {[%clk 0:19:36]} 62. Rh5+ {[%clk 0:01:56]}  Kf6 {[%clk 0:20:00]} 63. Kf4 {[%clk 0:01:54]}  e3 {[%clk 0:19:09]}
64. Kf3 {[%clk 0:00:37]}  Rg1 {[%clk 0:19:26]} 65. Kxe3 {[%clk 0:00:34]} 1/2-1/2

[Event "2026 European Womens Championship"]
[Site "Batumi, GE"]
[Date "2026.06.05"]
[Round "11"]
[White "Avramidou, Anastasia"]
[Black "Hryzlova, Sofiia"]
[Result "1-0"]
[Board "26"]
[TimeControl "5400+30"]
[WhiteFideId "4239873"]
[BlackFideId "14174669"]
[WhiteElo "2320"]
[BlackElo "2226"]
[WhiteTitle "FM"]
[BlackTitle "WIM"]
[WhiteClock "0:08:09"]
[BlackClock "0:07:32"]
[Variant "Standard"]

1. c4 {[%clk 1:30:58]}  e5 {[%clk 1:26:19]} 2. g3 {[%clk 1:31:19]}  c6 {[%clk 1:20:21]} 3. Nf3 {[%clk 1:30:22]}  e4 {[%clk 1:20:39]}
4. Nd4 {[%clk 1:30:44]}  d5 {[%clk 1:21:06]} 5. cxd5 {[%clk 1:30:55]}  Qxd5 {[%clk 1:21:33]} 6. Nc2 {[%clk 1:31:13]}  Nf6 {[%clk 1:21:57]}
7. Nc3 {[%clk 1:31:32]}  Qe5 {[%clk 1:22:23]} 8. Bg2 {[%clk 1:31:42]}  Na6 {[%clk 1:22:46]} 9. Rb1 {[%clk 1:32:00]}  h5 {[%clk 1:22:22]}
10. h4 {[%clk 1:29:48]}  Nc7 {[%clk 1:21:44]} 11. b4 {[%clk 1:22:40]}  Bd6 {[%clk 1:17:12]} 12. Bb2 {[%clk 1:19:00]}  Qe7 {[%clk 1:16:45]}
13. Ba1 {[%clk 1:13:37]}  Bg4 {[%clk 1:10:08]} 14. b5 {[%clk 1:04:39]}  Bf3 {[%clk 1:03:23]} 15. Bxf3 {[%clk 0:50:11]}  exf3 {[%clk 1:03:44]}
16. bxc6 {[%clk 0:50:15]}  bxc6 {[%clk 1:00:44]} 17. e3 {[%clk 0:46:28]}  O-O {[%clk 0:43:53]} 18. Qxf3 {[%clk 0:46:50]}  c5 {[%clk 0:44:15]}
19. O-O {[%clk 0:41:26]}  Qe6 {[%clk 0:44:09]} 20. Na3 {[%clk 0:35:52]}  Be7 {[%clk 0:37:23]} 21. Rb7 {[%clk 0:26:50]}  Na6 {[%clk 0:37:25]}
22. Nab5 {[%clk 0:25:41]}  Rad8 {[%clk 0:36:29]} 23. d4 {[%clk 0:23:56]}  Nb4 {[%clk 0:36:45]} 24. a3 {[%clk 0:19:54]}  Nc6 {[%clk 0:30:13]}
25. Rc7 {[%clk 0:15:45]}  Na5 {[%clk 0:20:10]} 26. Rxa7 {[%clk 0:13:53]}  Nb3 {[%clk 0:19:55]} 27. d5 {[%clk 0:12:21]}  Nxd5 {[%clk 0:16:37]}
28. Nxd5 {[%clk 0:12:46]}  Rxd5 {[%clk 0:16:22]} 29. Nc7 {[%clk 0:10:47]}  Qb6 {[%clk 0:14:43]} 30. Ra6 {[%clk 0:10:00]}  Qxc7 {[%clk 0:13:43]}
31. Qxd5 {[%clk 0:10:24]}  Nxa1 {[%clk 0:12:50]} 32. Rxa1 {[%clk 0:10:48]}  Qc8 {[%clk 0:13:04]} 33. Ra7 {[%clk 0:09:08]}  Rd8 {[%clk 0:09:26]}
34. Qb7 {[%clk 0:07:38]}  Qxb7 {[%clk 0:06:40]} 35. Rxb7 {[%clk 0:08:02]}  Bf6 {[%clk 0:07:07]} 36. Rc1 {[%clk 0:08:16]}  Rc8 {[%clk 0:07:32]}
37. Rc4 {[%clk 0:08:09]} 1-0

[Event "2026 European Womens Championship"]
[Site "Batumi, GE"]
[Date "2026.06.05"]
[Round "11"]
[White "Maltsevskaya, Aleksandra"]
[Black "Antova, Gabriela"]
[Result "1-0"]
[Board "27"]
[TimeControl "5400+30"]
[WhiteFideId "24174041"]
[BlackFideId "2915235"]
[WhiteElo "2390"]
[BlackElo "2203"]
[WhiteTitle "IM"]
[BlackTitle "WGM"]
[WhiteClock "0:28:30"]
[BlackClock "0:31:27"]
[Variant "Standard"]

1. c4 {[%clk 1:30:57]}  Nf6 {[%clk 1:29:47]} 2. Nf3 {[%clk 1:31:04]}  e6 {[%clk 1:22:06]} 3. g3 {[%clk 1:31:16]}  b6 {[%clk 1:20:27]}
4. Bg2 {[%clk 1:31:18]}  Bb7 {[%clk 1:20:46]} 5. O-O {[%clk 1:31:23]}  d5 {[%clk 1:20:28]} 6. cxd5 {[%clk 1:30:34]}  exd5 {[%clk 1:20:42]}
7. d4 {[%clk 1:30:57]}  Nbd7 {[%clk 1:09:10]} 8. Bf4 {[%clk 1:24:17]}  Be7 {[%clk 1:08:08]} 9. Nc3 {[%clk 1:24:04]}  O-O {[%clk 1:07:24]}
10. Rc1 {[%clk 1:24:12]}  c5 {[%clk 0:53:20]} 11. Ne5 {[%clk 1:13:54]}  Nxe5 {[%clk 0:42:23]} 12. Bxe5 {[%clk 1:03:57]}  Ne4 {[%clk 0:33:43]}
13. Qc2 {[%clk 0:53:43]}  Nxc3 {[%clk 0:32:42]} 14. Qxc3 {[%clk 0:53:12]}  c4 {[%clk 0:32:26]} 15. e4 {[%clk 0:50:19]}  b5 {[%clk 0:30:17]}
16. exd5 {[%clk 0:41:14]}  Bxd5 {[%clk 0:28:47]} 17. Rfe1 {[%clk 0:40:28]}  Re8 {[%clk 0:25:41]} 18. Re2 {[%clk 0:36:34]}  Bf8 {[%clk 0:22:40]}
19. Rce1 {[%clk 0:35:15]}  b4 {[%clk 0:20:44]} 20. Qc2 {[%clk 0:31:01]}  Bxg2 {[%clk 0:19:19]} 21. Kxg2 {[%clk 0:31:24]}  Rc8 {[%clk 0:16:37]}
22. Qf5 {[%clk 0:28:02]}  Qd5+ {[%clk 0:16:05]} 23. Qf3 {[%clk 0:28:16]}  Red8 {[%clk 0:15:48]} 24. Rc1 {[%clk 0:12:22]}  f6 {[%clk 0:10:20]}
25. Bf4 {[%clk 0:12:46]}  Qxd4 {[%clk 0:08:51]} 26. Rd2 {[%clk 0:11:25]}  Qc5 {[%clk 0:08:48]} 27. Be3 {[%clk 0:08:37]}  Qc7 {[%clk 0:08:29]}
28. Rxd8 {[%clk 0:07:48]}  Rxd8 {[%clk 0:08:10]} 29. Qe4 {[%clk 0:02:51]}  c3 {[%clk 0:07:27]} 30. bxc3 {[%clk 0:02:42]}  bxc3 {[%clk 0:07:50]}
31. Qa4 {[%clk 0:01:40]}  Rc8 {[%clk 0:07:25]} 32. Rc2 {[%clk 0:01:27]}  Qb7+ {[%clk 0:05:53]} 33. f3 {[%clk 0:01:28]}  Qd5 {[%clk 0:05:12]}
34. Bxa7 {[%clk 0:00:36]}  Rc4 {[%clk 0:02:52]} 35. Qb3 {[%clk 0:00:50]}  Qd3 {[%clk 0:02:57]} 36. a4 {[%clk 0:00:34]}  h5 {[%clk 0:02:57]}
37. Bf2 {[%clk 0:00:38]}  Bb4 {[%clk 0:02:43]} 38. Rc1 {[%clk 0:00:35]}  Kh7 {[%clk 0:01:09]} 39. Rd1 {[%clk 0:00:39]}  Qe2 {[%clk 0:01:29]}
40. Re1 {[%clk 0:00:54]}  c2 {[%clk 0:00:34]} 41. Rxe2 {[%clk 0:01:00]}  c1=Q {[%clk 0:00:56]} 42. Qd3+ {[%clk 0:01:20]}  Kg8 {[%clk 0:00:43]}
43. Re8+ {[%clk 0:29:08]}  Kf7 {[%clk 0:31:02]} 44. Qd7+ {[%clk 0:29:31]}  Kg6 {[%clk 0:31:27]} 45. Rg8 {[%clk 0:28:30]} 1-0